Workbook

Sheet Теплопритоки
F2: Расчёт теплопритоков для
F3: стационарной камеры
A5: Заказчик: | E5: Исходные данные:
E6: Температура в камере | G6: Tкам, 0С | H6: 3
E7: Температура окр. среды | G7: Tо.с., 0С | H7: 35
A8: Характеристика процесса: | E8: Высота камеры | G8: H, м | H8: 4
E9: Длина камеры | G9: L, м | H9: 30
E10: Ширина камеры | G10: B, м | H10: 15
E11: Высота двери | G11: b, м | H11: 3
E12: Ширина двери | G12: c, м | H12: 3
A13: Назначение камеры: | E13: Количество дверей | G13: шт. | H13: 1
E14: Вид продукта | G14: шт. | J14: =CHOOSE(Списки!B5,Списки!D2,Списки!D3,Списки!D4) -> 0.3
E15: Температура входящего продукта | G15: Tвх, 0С | H15: 8
E16: Температура выходящего продукта | G16: Tвых, 0С | H16: 3
E17: Величина одной загрузки | G17: m, кг | H17: 28000
E18: Длительность процесса | G18: tпр, ч | H18: 24
E19: Плотность загрузки | G19: кг/м3 | H19: 73
E20: Общее количество продукта в камере | G20: М, кг
E21: Число работающих погрузчиков | G21: nпогр, шт. | H21: 1
E22: Время работы погрузчиков | G22: tзагр, час | H22: 8
E23: Материал тары | G23: Алюминий
E24: Процент тары от массы продукта | G24: %
E25: Кратность вентиляции в сутки | G25: ав | H25: 1
E26: Теплозащита двери камеры | G26: h | H26: 0 | J26: =CHOOSE(Списки!G22,Списки!H18,Списки!H19,Списки!H20,Списки!H21) -> 0.6
E27: Тип изоляции стен и потолка | H27: 15
E28: Толщина изоляции камеры (ППС) | G28: dиз, мм | H28: 180
E29: Тип изоляции пола | H29: =ROUND((3.3333*(H7-H6) + 5.8333)/10,0)*10 -> 110
E30: Толщина изоляции пола | G30: dиз, мм | H30: 100
E31: Конструкция пола | J31: =CHOOSE(Списки!B39,Списки!D37,Списки!D38) -> 6
C33: Расчётные данные:
C34: Объём камеры | F34: V, м3 | G34: =H8*H9*H10 -> 1800
C35: Площадь стен и потолка | F35: F, м2 | G35: =2*H8*H9+2*H8*H10+H9*H10 -> 810
C36: Площадь пола | F36: Fпол, м2 | G36: =H9*H10 -> 450
C37: Площадь двери камеры | F37: Fдв, м2 | G37: =H11*H12 -> 9
C38: Коэффициент теплопередачи стенок | F38: к, Вт/(м2 К) | G38: =CHOOSE(Списки!B23,Списки!D20,Списки!D21,Списки!D22) -> 0.3333333333
C39: Коэффициент теплопередачи пола | F39: кпол, Вт/(м2 К) | G39: =CHOOSE(Списки!B33,Списки!D27,Списки!D28,Списки!D29,Списки!D30,Списки!D31) -> 17
C40: Теплоёмкость свежего продукта | F40: С1, кДж/(кг К) | G40: =CHOOSE(Списки!G14,Списки!H2,Списки!H3,Списки!H4,Списки!H5,Списки!H6,Списки!H7,Списки!H8,Списки!H9,Списки!H10,Списки!H11,Списки!H12,Списки!H13) -> 4.1
C41: Теплоёмкость морож. продукта | F41: С2, кДж/(кг К) | G41: =CHOOSE(Списки!G14,Списки!I2,Списки!I3,Списки!I4,Списки!I5,Списки!I6,Списки!I7,Списки!I8,Списки!I9,Списки!I10,Списки!I11,Списки!I12,Списки!I13) -> 2.1
C42: Теплота замораживания продукта | F42: qзам, кДж/(кг сут) | G42: =CHOOSE(Списки!G14,Списки!J2,Списки!J3,Списки!J4,Списки!J5,Списки!J6,Списки!J7,Списки!J8,Списки!J9,Списки!J10,Списки!J11,Списки!J12,Списки!J13) -> 319
C43: Теплота дыхания продукта | F43: qд, кДж/(кг сут) | G43: =CHOOSE(Списки!G14,Списки!K2,Списки!K3,Списки!K4,Списки!K5,Списки!K6,Списки!K7,Списки!K8,Списки!K9,Списки!K10,Списки!K11,Списки!K12,Списки!K13) -> 4
C44: Удельный теплоприток через дверь | F44: qдв, кВт/м2 | G44: =0.0024*(H7-H6)*(H7-H6)+0.1749*(H7-H6) -> 8.0544
C45: Теплоёмкость тары | F45: Ст, кДж/(кг К) | G45: =CHOOSE(Списки!B16,Списки!D9,Списки!D10,Списки!D11,Списки!D12,Списки!D13,Списки!D14,Списки!D15) -> 1.67
C47: Теплопритоки по составляющим:
A48: 1.) | B48: Через изоляцию стен и потолка | F48: Qст, Вт | G48: =G38*G35*(H7-H6) -> 8640 | H48: =G48/G58 -> 0.1667461638
A49: 2.) | B49: Через изоляцию пола | F49: Qпол, Вт | G49: =G39*G36*(J31-H6) -> 22950 | H49: =G49/G58 -> 0.4429194975
A50: 3.) | B50: На охлаждение продукта | F50: Qохл, Вт | G50: =IF(H15<0, 0, IF(H16<=0, H17*24/H18*G40*(H15-0)/(24*3600)*1000, H17*24/H18*G40*(H15-H16)/(24*3600)*1000)) -> 6643.518519 | H50: =G50/G58 -> 0.1282154198
A51: 4.) | B51: На замораживание продукта | F51: Qзам, Вт | G51: =IF(OR(H15<0, H16>=0), 0, H17*24/H18*G42/(24*3600)*1000) -> 0 | H51: =G51/G58 -> 0
A52: 5.) | B52: На дальнейшее охлаждение продукта | F52: Qдзам, Вт | G52: =IF(H16>0, 0, IF(H15>0, H17*24/H18*G41*(0-H16)/(24*3600)*1000, H17*24/H18*G41*(H15-H16)/(24*3600)*1000)) -> 0 | H52: =G52/G58 -> 0
A53: 6.) | B53: На дыхание продуктов | F53: Qдых, Вт | G53: =IF(H6>0, H20*24/H18*G43/(24*3600)*1000, 0) -> 0 | H53: =G53/G58 -> 0
A54: 7.) | B54: Теплопритоки через открытую дверь | F54: Qдверь, Вт | G54: =J14*G44*1000*G37*(1-J26)*(0.5*H13+0.5) -> 8698.752 | H54: =G54/G58 -> 0.1678800377
A55: 8.) | B55: Теплопритоки от вентиляции | F55: Qвент, Вт | G55: =G34*'Свойства воздуха'!D30*H25*'Свойства воздуха'!D28*1000/(24*3600) -> 2716.347821 | H55: =G55/G58 -> 0.05242367809
A56: 9.) | B56: Теплопритоки от погрузчиков | F56: Qпогр, Вт | G56: =H21*6500*H22/H18 -> 2166.666667 | H56: =G56/G58 -> 0.04181520311
A57: 10.) | B57: На охлаждение тары | F57: Qтар, Вт | G57: =H17*24/H18*H24/100*G45*(H15-H16)/(24*3600)*1000 -> 0 | H57: =G57/G58 -> 0
F58: Итого: | G58: =SUM(G48:G57) -> 51815.28501 | H58: =SUM(H48:H57) -> 1
A60: Рекомендуемая холодопроизводительность составляет: | G60: =G58/0.75*1.1 -> 75995.75134 | H60: Вт

Sheet Цикл и аппараты (hidden)
A2: Параметры холодильного цикла: | F2: Параметры комрессора:
A3: Используемый фреон | D3: R22 | F3: Энтальпия в т.1п | G3: кДж/кг | H3: =-0.001*D5*D5+0.4571*D5+425.37 -> 426.7323
A4: Величина перегрева на всасывании, К | D4: 30 | F4: Энтальпия в т.4 | G4: кДж/кг | H4: =0.0016*D7*D7+1.1367*D7+200.94 -> 261.775
A5: Температура кипения, То | D5: =Теплопритоки!H6-Теплопритоки!C30 -> 3 | F5: Уд. холодопр-ть | G5: кДж/кг | H5: =H3-H4 -> 164.9573
A6: Температура всасывания, Твс | D6: =D5+D4 -> 33 | F6: Уд. объём на всас. | G6: м3/кг | H6: 0.16 | I6: =-0.0000005*D6*D6*D6+0.00007*D6*D6-0.001*D6+0.0518 -> 0.0770615
A7: Температура конденсации, Тк | D7: =Теплопритоки!H7+15 -> 50 | F7: Коэф. подачи к-ра | G7: - | H7: 0.7
F8: Коэф. запаса к-ра | G8: - | H8: 1.15
F9: Теор. объём. пр-ть | G9: м3/с | H9: =1.15*Теплопритоки!G58*H6/H5/1000/H7*3600 -> 297.2409465

Sheet Списки (hidden)
B1: Назначение камеры | D1: b | G1: Вид продукта | H1: C1 | I1: C2 | J1: q3 | K1: qд
A2: 1 | B2: Хранение | D2: 0.15 | F2: 1 | G2: Сало, жир | H2: 1.5 | I2: 1.1 | J2: 68 | K2: 0
A3: 2 | B3: Распределение | D3: 0.3 | F3: 2 | G3: Мясо, рыба, птица | H3: 3.3 | I3: 1.8 | J3: 246 | K3: 0
A4: 3 | B4: Хол. обработка | D4: 0.1 | F4: 3 | G4: Колбаса | H4: 3.7 | I4: 2.3 | J4: 216 | K4: 0
B5: 2 | F5: 4 | G5: Овощи | H5: 4.1 | I5: 2.1 | J5: 319 | K5: 4
F6: 5 | G6: Фрукты 1 (бананы, груша, вишня...) | H6: 3.8 | I6: 1.8 | J6: 251 | K6: 10
F7: 6 | G7: Фрукты 2 (яблоки, цитрусовые...) | H7: 3.8 | I7: 1.9 | J7: 290 | K7: 1.9
B8: Материал тары | D8: C, кДж/(кг К) | F8: 7 | G8: Молоко | H8: 3.8 | I8: 2.5 | J8: 290 | K8: 0
A9: 1 | B9: Отсутствует | D9: 0 | F9: 8 | G9: Мороженое | H9: 2.9 | I9: 1.6 | J9: 207 | K9: 0
A10: 2 | B10: Алюминий | D10: 0.84 | F10: 9 | G10: Сыр | H10: 2.1 | I10: 1.3 | J10: 126 | K10: 0
A11: 3 | B11: Дерево | D11: 2.51 | F11: 10 | G11: Шоколад | H11: 3.18 | I11: 3.18 | J11: 126 | K11: 0
A12: 4 | B12: Картон | D12: 1.67 | F12: 11 | G12: Напитки | H12: 3.9 | I12: 1.72 | J12: 300 | K12: 0
A13: 5 | B13: Стекло | D13: 0.84 | F13: 12 | G13: Ягоды (черника, малина) | H13: 3.6 | I13: 1.9 | J13: 280 | K13: 0
A14: 6 | B14: Пластмасса | D14: 2.09 | G14: 4
A15: 7 | B15: Сталь | D15: 0.42
B16: 4
G17: Теплозащита двери камеры | H17: h
F18: 1 | G18: Отсутствие теплозащиты | H18: 0
B19: Тип изоляции стен | D19: к, Вт/(м3 К) | F19: 2 | G19: Тепловая завеса (шторы) | H19: 0.6
A20: 1 | B20: Минеральная вата | D20: =0.06/Теплопритоки!H28*1000 -> 0.3333333333 | F20: 3 | G20: Тепловой шлюз (тамбур) | H20: 0.8
A21: 2 | B21: Пенополистирол (ПСБ-С) | D21: =-0.3364*LN(Теплопритоки!H28)+ 1.9826 -> 0.2356893154 | F21: 4 | G21: Тепловоздушный затвор | H21: 0.95
A22: 3 | B22: Пенополиуретан (SPU, EKE) | D22: =19.604*POWER(Теплопритоки!H28, -0.9575) -> 0.1358067231 | G22: 2
B23: 1
B26: Тип изоляции пола | D26: к, Вт/(м3 К)
A27: 1 | B27: Бетон | D27: =1.7/Теплопритоки!H30*1000 -> 17 | G27: Используемый фреон
A28: 2 | B28: Минеральная вата | D28: =0.06/Теплопритоки!H30*1000 -> 0.6 | F28: 1 | G28: R22 | I28: =0.06/Теплопритоки!M36*1000 -> 
A29: 3 | B29: Пенополистирол (ПСБ-С) | D29: =-0.3364*LN(Теплопритоки!H30)+ 1.9826 -> 0.4334207494 | F29: 2 | G29: R404A | I29: =-0.3364*LN(Теплопритоки!M36)+ 1.9826 -> 
A30: 4 | B30: Пенополиуретан (SPU-AL) | D30: =19.604*POWER(Теплопритоки!H30, -0.9575) -> 0.2384211036 | F30: 3 | G30: R12 | I30: =19.604*POWER(Теплопритоки!M36, -0.9575) -> 
A31: 5 | B31: Керамзитовая засыпка | D31: =0.2/Теплопритоки!H30*1000 -> 2 | G31: 1
B33: 1
B36: Конструкция пола | D36: Tгр, оС
A37: 1 | B37: Оторван от грунта | D37: =Теплопритоки!H7 -> 35
A38: 2 | B38: На грунте (подогрев) | D38: 6
B39: 2

Sheet Таблицы (hidden)
C1: dT=То.с. - Тохл
B2: Данные Зеликовского и Каплана
B3: dT, оС | C3: 42 | D3: 30 | E3: 20 | F3: 12
B4: dиз, мм (ПХВ-1) | C4: 200 | D4: 150 | E4: 100 | F4: 70
B5: dиз, мм (ПСБ-С) | C5: 150 | D5: 100 | E5: 70 | F5: 50
B6: к, Вт/(м2К) | C6: 0.3 | D6: 0.43 | E6: 0.55 | F6: 0.67
C8: =ROUND((3.3333*C3 + 5.8333)/10,0)*10 -> 150 | D8: =ROUND((3.3333*D3 + 5.8333)/10,0)*10 -> 110 | E8: =ROUND((3.3333*E3 + 5.8333)/10,0)*10 -> 70 | F8: =ROUND((3.3333*F3 + 5.8333)/10,0)*10 -> 50
C9: =-0.3364*LN(C5) + 1.9826 -> 0.2970222871 | D9: =-0.3364*LN(D5) + 1.9826 -> 0.4334207494 | E9: =-0.3364*LN(E5) + 1.9826 -> 0.5534062006 | F9: =-0.3364*LN(F5) + 1.9826 -> 0.666595461
B11: Данные по "ROMA"
B12: dиз, мм (ППУ) | C12: 200 | D12: 170 | E12: 140 | F12: 120 | G12: 100 | H12: 80 | I12: 60 | J12: 45
B13: к, Вт/(м2К) | C13: 0.122 | D13: 0.143 | E13: 0.173 | F13: 0.201 | G13: 0.24 | H13: 0.297 | I13: 0.389 | J13: 0.508
C14: =19.604*POWER(C12, -0.9575) -> 0.1227745845 | D14: =19.604*POWER(D12, -0.9575) -> 0.1434464655 | E14: 0.1727535973 | F14: 0.200229771 | G14: 0.2384211036 | H14: 0.295213376 | I14: 0.3888345717 | J14: 0.5121459137
B33: Данные по плотности теплового потока через дверь | L33: Учёт количества дверей в камере
B34: dТ, К | C34: 0 | D34: 10 | E34: 20 | F34: 30 | G34: 40 | H34: 50 | I34: 60 | K34: Кол-во, шт | L34: 1 | M34: 2 | N34: 3 | O34: 4
B35: qдв, кВт/м2 | C35: 0 | D35: 2.2 | E35: 4.5 | F35: 7.4 | G35: 11 | K35: Коэфф-т | L35: 1 | M35: 1.5 | N35: 2 | O35: 2.5
C36: =0.0024*C34*C34+0.1749*C34 -> 0 | D36: =0.0024*D34*D34+0.1749*D34 -> 1.989 | E36: 4.458 | F36: 7.407 | G36: 10.836 | H36: 14.745 | I36: 19.134 | L36: =0.5*L34+0.5 -> 1 | M36: =0.5*M34+0.5 -> 1.5 | N36: =0.5*N34+0.5 -> 2 | O36: =0.5*O34+0.5 -> 2.5

Sheet R22 (hidden)
B2: То, оС | C2: Фреон | D2: -40 | E2: -35 | F2: -30 | G2: -25 | H2: -20 | I2: -15 | J2: -10 | K2: -5 | L2: 0
B3: i1, кДж/кг | C3: R22 | D3: 387.93 | E3: 390.3 | F3: 392.61 | G3: 394.85 | H3: 397.03 | I3: 399.13 | J3: 401.14 | K3: 403.07 | L3: 404.9
A4: dT=30 | B4: i1п, кДж/кг | C4: R22 | D4: 405.54 | E4: 408.17 | F4: 410.77 | G4: 413.33 | H4: 415.84 | I4: 418.3 | J4: 420.72 | K4: 423.07 | L4: 425.36
B5: u1п, м3/кг | C5: R22 | D5: 0.2346 | E5: 0.1897 | F5: 0.1549 | G5: 0.1276 | H5: 0.106 | I5: 0.0888 | J5: 0.0654 | K5: 0.0554 | L5: 0.0543
D7: =-0.0015*D2*D2+0.3637*D2+404.92 -> 387.972 | E7: 390.353 | F7: 392.659 | G7: 394.89 | H7: 397.046 | I7: 399.127 | J7: 401.133 | K7: 403.064 | L7: 404.92
D8: =-0.001*D2*D2+0.4571*D2+425.37 -> 405.486 | E8: 408.1465 | F8: 410.757 | G8: 413.3175 | H8: 415.828 | I8: 418.2885 | J8: 420.699 | K8: 423.0595 | L8: 425.37
D9: =-0.0000005*D2*D2*D2+0.00007*D2*D2-0.001*D2+0.0518 -> 0.2358 | E9: 0.1939875 | F9: 0.1583 | G9: 0.1283625 | H9: 0.1038 | I9: 0.0842375 | J9: 0.0693 | K9: 0.0586125 | L9: 0.0518
B11: Тк, оС | C11: R22 | D11: 30 | E11: 35 | F11: 40 | G11: 45 | H11: 50
B12: i3, кДж/кг | C12: R22 | D12: 236.5 | E12: 242.73 | F12: 249.01 | G12: 255.38 | H12: 261.85
D14: =0.0016*D11*D11+1.1367*D11+200.94 -> 236.481 | E14: =0.0016*E11*E11+1.1367*E11+200.94 -> 242.6845 | F14: =0.0016*F11*F11+1.1367*F11+200.94 -> 248.968 | G14: =0.0016*G11*G11+1.1367*G11+200.94 -> 255.3315 | H14: =0.0016*H11*H11+1.1367*H11+200.94 -> 261.775

Sheet Свойсва продуктов (hidden)
A1: Физические характеристики пищевых продуктов
A3: Мясные продукты | B3: Продукт | C3: С1, кДж/(кг К) | D3: С2, кДж/(кг К) | E3: qz, кДж/(кг сут) | F3: qд, кДж/(кг сут)
B4: Мясо (шпик, корейка, грудинка) | C4: 1.53 | D4: 1.1 | E4: 68
B5: Бифштекс | C5: 3.2 | D5: 1.67 | E5: 231
B6: Баранина | C6: 3 | D6: 1.86 | E6: 216
B7: Свинина | C7: 2.13 | D7: 1.3 | E7: 128
B8: Колбаса | C8: 3.72 | D8: 2.34 | E8: 216
B9: Птица | C9: 3.3 | D9: 1.76 | E9: 246
B10: Рыба | C10: 3.26 | D10: 1.74 | E10: 245
A11: Овощи и фрукты | B11: Свёкла | C11: 3.77 | D11: 1.92 | E11: 293 | F11: 3.1
B12: Капуста | C12: 3.8 | D12: 1.96 | E12: 307 | F12: 1.4 - 6.7
B13: Огурцы | C13: 4.06 | D13: 2.05 | E13: 319 | F13: -
B14: Лук репчатый | C14: 3.68 | D14: 1.93 | E14: 293 | F14: -
B15: Томаты | C15: 3.94 | D15: 2 | E15: 312 | F15: 4.3 - 7.2
B16: Яблоки | C16: 3.64 | D16: 1.88 | E16: 281 | F16: 1.92
B17: Бананы | C17: 3.35 | D17: 1.76 | E17: 251 | F17: -
B18: Апельсины | C18: 3.77 | D18: 1.92 | E18: 288 | F18: 1.68
A19: Молочные | B19: Масло | C19: 1.38 | D19: 1.05 | E19: 53
B20: Сыр | C20: 2.1 | D20: 1.3 | E20: 126
B21: Мороженое | C21: 2.93 | D21: 1.63 | E21: 207
A22: Прочее | B22: Пиво | C22: 3.85 | D22: - | E22: 300
B23: Хлеб | C23: 2.93 | D23: 1.42 | E23: 115
B24: Яйца | C24: 3.05 | D24: 1.76 | E24: 230

Sheet Свойства воздуха (hidden)
A2: Свойства влажного насыщенного воздуха (при давлении 760 мм рт.ст.= 100 кПа)
A4: t, оС | B4: h, кДж/кг | C4: hвл, кДж/кг | F4: hв, кДж/кг | H4: r, кг/м3
B5: Сухой воздух | C5: Вл. насыщ. воздух | F5: Влажн. воздух | G5: при j=80 %
A6: -40 | B6: -40.24 | C6: -40.05 | D6: =1.0062*A6+0.0005 -> -40.2475 | E6: =0.0006*A6*A6*A6+0.0334*A6*A6+1.6759*A6+7.5345 -> -44.4615 | F6: =B6+(C6-B6)*D25 -> -40.088 | G6: =0.0005*A6*A6*A6+0.0269*A6*A6+1.5431*A6+6.0019 -> -44.6821 | H6: 1.495 | I6: =0.00001*A6*A6-0.005*A6+1.2745 -> 1.4905
A7: -35 | B7: -35.21 | C7: -34.87 | D7: =1.0062*A7+0.0005 -> -35.2165 | E7: =0.0006*A7*A7*A7+0.0334*A7*A7+1.6759*A7+7.5345 -> -35.932 | F7: =B7+(C7-B7)*D25 -> -34.938 | G7: =0.0005*A7*A7*A7+0.0269*A7*A7+1.5431*A7+6.0019 -> -36.4916 | H7: 1.464 | I7: =0.00001*A7*A7-0.005*A7+1.2745 -> 1.46175
A8: -30 | B8: -30.18 | C8: -29.61 | D8: -30.1855 | E8: -28.8825 | F8: =B8+(C8-B8)*D25 -> -29.724 | G8: -29.5811 | H8: 1.434 | I8: 1.4335
A9: -25 | B9: -25.18 | C9: -24.19 | D9: -25.1545 | E9: -22.863 | F9: =B9+(C9-B9)*D25 -> -24.388 | G9: -23.5756 | H9: 1.405 | I9: 1.40575
A10: -20 | B10: -20.12 | C10: -18.54 | D10: -20.1235 | E10: -17.4235 | F10: =B10+(C10-B10)*D25 -> -18.856 | G10: -18.1001 | H10: 1.377 | I10: 1.3785
A11: -15 | B11: -15.09 | C11: -12.55 | D11: -15.0925 | E11: -12.114 | F11: =B11+(C11-B11)*D25 -> -13.058 | G11: -12.7796 | H11: 1.351 | I11: 1.35175
A12: -10 | B12: -10.06 | C12: -6.04 | D12: -10.0615 | E12: -6.4845 | F12: =B12+(C12-B12)*D25 -> -6.844 | G12: -7.2391 | H12: 1.325 | I12: 1.3255
A13: -5 | B13: -5.03 | C13: 1.21 | D13: -5.0305 | E13: -0.085 | F13: =B13+(C13-B13)*D25 -> -0.038 | G13: -1.1036 | H13: 1.299 | I13: 1.29975
A14: 0 | B14: 0 | C14: 9.56 | D14: 0.0005 | E14: 7.5345 | F14: =B14+(C14-B14)*D25 -> 7.648 | G14: 6.0019 | H14: 1.274 | I14: 1.2745
A15: 5 | B15: 5.03 | C15: 18.76 | D15: 5.0315 | E15: 16.824 | F15: =B15+(C15-B15)*D25 -> 16.014 | G15: 14.4524 | H15: 1.25 | I15: 1.24975
A16: 10 | B16: 10.06 | C16: 29.53 | D16: 10.0625 | E16: 28.2335 | F16: =B16+(C16-B16)*D25 -> 25.636 | G16: 24.6229 | H16: 1.227 | I16: 1.2255
A17: 15 | B17: 15.09 | C17: 42.36 | D17: 15.0935 | E17: 42.213 | F17: =B17+(C17-B17)*D25 -> 36.906 | G17: 36.8884 | H17: 1.204 | I17: 1.20175
A18: 20 | B18: 20.12 | C18: 57.9 | D18: 20.1245 | E18: 59.2125 | F18: =B18+(C18-B18)*D25 -> 50.344 | G18: 51.6239 | H18: 1.181 | I18: 1.1785
A19: 25 | B19: 25.15 | C19: 76.97 | D19: 25.1555 | E19: 79.682 | F19: =B19+(C19-B19)*D25 -> 66.606 | G19: 69.2044 | H19: 1.158 | I19: 1.15575
A20: 30 | B20: 30.19 | C20: 100.64 | D20: 30.1865 | E20: 104.0715 | F20: =B20+(C20-B20)*D25 -> 86.55 | G20: 90.0049 | H20: 1.136 | I20: 1.1335
A21: 35 | B21: 35.22 | C21: 130.31 | D21: 35.2175 | E21: 132.831 | F21: =B21+(C21-B21)*D25 -> 111.292 | G21: 114.4004 | H21: 1.121 | I21: 1.11175
A22: 40 | B22: 40.26 | C22: 167.82 | D22: 40.2485 | E22: 166.4105 | F22: =B22+(C22-B22)*D25 -> 142.308 | G22: 142.7659 | H22: 1.088 | I22: 1.0905
A25: Задаваемая влажность воздуха: | D25: 0.8
A26: Энтальпия воздуха в камере, кДж/кг | D26: =0.0005*Теплопритоки!H6*Теплопритоки!H6*Теплопритоки!H6+0.0269*Теплопритоки!H6*Теплопритоки!H6+1.5431*Теплопритоки!H6+6.0019 -> 10.8868
A27: Энтальпия наружного воздуха, кДж/кг | D27: =0.0005*Теплопритоки!H7*Теплопритоки!H7*Теплопритоки!H7+0.0269*Теплопритоки!H7*Теплопритоки!H7+1.5431*Теплопритоки!H7+6.0019 -> 114.4004
A28: Разность энтальпий, кДж/кг | D28: =D27-D26 -> 103.5136
A30: Плотность воздуха в камере, кг/м3 | D30: =0.00001*Теплопритоки!H6*Теплопритоки!H6-0.005*Теплопритоки!H6+1.2745 -> 1.25959
